bitfinex-derivatives/quotes_ETHF0:USTF0_20260316
["timestamp","ask_amount","ask_price","bid_price","bid_amount"]
[1773649856809,4.08340124,2250.2,2249.6,3.76060652]
[1773649857708,8.123,2250.1,2249.6,3.76060652]
[1773649858209,12.20640124,2250.1,2249.6,3.76060652]
[1773649858713,4.08340124,2250.0,2249.6,3.76060652]
[1773649858914,12.20640124,2250.1,2249.6,3.76060652]
[1773649859413,4.08340124,2250.1,2249.6,3.76060652]
[1773649859614,12.21940124,2250.1,2249.6,3.76060652]
[1773649859909,4.08340124,2250.0,2249.6,3.76060652]
[1773649860115,4.08340124,2250.0,2249.1,3.76060652]
[1773649860505,4.08340124,2250.0,2249.2,3.76060652]
[1773649860904,4.08340124,2250.6,2249.4,3.76060652]
[1773649861112,4.08340124,2250.4,2249.4,3.76060652]
[1773649862006,4.08340124,2250.4,2248.9,7.14443346]
[1773649862313,4.08340124,2250.4,2249.0,3.76060652]
[1773649862913,8.144,2250.5,2249.0,3.76060652]
[1773649862914,4.08340124,2250.2,2249.0,3.76060652]
[1773649863105,4.30557124,2250.1,2248.7,3.76060652]
[1773649863411,4.08340124,2249.9,2248.5,3.76060652]
[1773649864309,4.08340124,2249.7,2248.5,3.76060652]
[1773649864516,4.08340124,2249.7,2248.4,3.76060652]
[1773649865517,4.08340124,2249.5,2248.4,3.76060652]
[1773649867512,4.08340124,2249.3,2248.0,9.3256573]
[1773649867710,4.08340124,2249.3,2247.8,6.92557719]
[1773649867711,4.08340124,2249.0,2247.8,3.76060652]
[1773649867921,4.08340124,2248.8,2247.6,3.76060652]
[1773649868214,4.08340124,2248.8,2247.6,3.76564019]
[1773649868421,4.08340124,2248.6,2247.6,3.76564019]
[1773649869017,4.08340124,2248.4,2247.6,3.76564019]
[1773649870112,4.08340124,2248.4,2247.6,0.00503367]
[1773649870813,4.08340124,2248.4,2247.6,3.76564019]
[1773649871218,8.198,2248.3,2247.6,3.76564019]
[1773649871415,4.08340124,2248.4,2247.6,3.76564019]
[1773649871611,8.2,2248.3,2247.6,3.76564019]
[1773649871819,4.08340124,2248.2,2247.6,3.76564019]
[1773649872313,8.203,2248.3,2247.6,3.76564019]
[1773649872514,4.08340124,2248.4,2247.6,3.76564019]
[1773649872716,8.205,2248.3,2247.6,3.76564019]
[1773649872923,4.08340124,2248.7,2247.8,3.76060652]
[1773649873116,4.08340124,2248.6,2247.8,3.76060652]
[1773649874125,4.08340124,2249.0,2248.0,3.76060652]
[1773649874323,8.212,2248.9,2248.0,3.76060652]
[1773649874524,15.5,2248.8,2248.0,3.76060652]
[1773649874914,4.08340124,2249.0,2248.0,3.76060652]
[1773649875120,12.29840124,2249.0,2248.2,3.76060652]
[1773649875428,4.08340124,2248.9,2248.2,3.76060652]
[1773649876823,12.30440124,2248.9,2248.2,3.76060652]
[1773649877324,4.08340124,2248.8,2248.2,3.76060652]
[1773649877822,12.30740124,2248.8,2248.2,3.76060652]
[1773649878025,8.224,2248.8,2248.2,3.76060652]
[1773649878329,12.30740124,2248.8,2248.2,3.76060652]
[1773649878822,4.08340124,2248.7,2248.2,3.76060652]
[1773649879227,12.31540124,2248.7,2248.2,3.76060652]
[1773649879525,4.08340124,2248.6,2248.2,3.76060652]
[1773649879917,12.31540124,2248.7,2248.2,3.76060652]
[1773649881321,4.08340124,2248.6,2248.2,3.76060652]
[1773649881629,12.31540124,2248.7,2248.2,3.76060652]
[1773649881822,8.232,2248.7,2248.2,3.76060652]
[1773649882026,4.08340124,2248.9,2248.2,3.76060652]
[1773649882027,8.246,2248.9,2248.2,3.76060652]
[1773649882523,3.6969704,2249.3,2248.4,3.80949124]
[1773649882726,0.00491723,2249.3,2248.6,3.80949124]
[1773649882921,3.6969704,2249.3,2248.6,3.80949124]
[1773649883125,15.50491723,2249.3,2248.6,3.80949124]
[1773649883324,0.00491723,2249.3,2248.6,3.80949124]
[1773649883522,0.00491723,2249.3,2248.5,5.78738078]
[1773649883523,11.94405317,2249.5,2248.8,3.80949124]
[1773649883723,0.27715563,2250.8,2249.0,3.80949124]
[1773649883724,8.216,2249.8,2249.0,3.80949124]
[1773649883920,3.69205317,2249.9,2249.0,3.80949124]
[1773649884127,11.91205317,2249.9,2249.0,3.80949124]
[1773649884422,8.22577598,2249.9,2249.1,0.22227]
[1773649884728,0.00477598,2249.9,2249.2,3.80949124]
[1773649884925,0.00477598,2249.9,2249.2,3.81470073]
[1773649884926,3.69205317,2249.8,2249.2,3.81470073]
[1773649885522,3.69205317,2249.8,2249.2,0.00520949]
[1773649888219,3.69205317,2249.8,2248.8,3.80949124]
[1773649889226,3.69205317,2249.8,2248.8,3.81318758]
[1773649889927,3.69205317,2249.6,2248.8,3.81318758]
[1773649890531,8.271,2249.5,2248.9,3.80949124]
[1773649890734,8.272,2249.5,2248.9,3.80949124]
[1773649891129,11.96405317,2249.5,2248.9,3.80949124]
[1773649892037,3.69682915,2249.9,2249.0,3.80949124]
[1773649892234,0.00477598,2249.9,2249.2,3.80949124]
[1773649892531,3.69682915,2249.9,2249.2,3.80949124]
[1773649893637,11.98682915,2249.9,2249.2,3.80949124]
[1773649893835,0.00477598,2249.9,2249.2,3.80949124]
[1773649896136,0.00477598,2249.9,2249.2,9.37454202]
[1773649896337,0.00477598,2249.9,2249.3,3.80949124]
[1773649896534,3.69682915,2249.9,2249.3,3.80949124]
[1773649897139,3.69682915,2249.9,2249.1,3.80949124]
[1773649899941,3.69205317,2249.7,2248.9,3.80949124]
[1773649900342,3.69205317,2249.7,2248.8,0.00369634]
[1773649901741,3.69205317,2249.7,2248.8,3.81318758]
[1773649902139,3.69205317,2249.7,2248.8,0.00369634]
[1773649903540,3.69205317,2249.7,2248.8,3.81318758]
[1773649904245,3.69205317,2249.5,2248.8,3.81318758]
[1773649904444,3.69205317,2249.5,2248.9,3.80949124]
[1773649906047,0.00477598,2249.9,2249.1,3.80949124]
[1773649906246,3.69682915,2249.9,2249.4,3.80949124]
[1773649907641,3.69682915,2249.9,2249.2,5.56505078]
[1773649907840,3.69682915,2249.9,2249.1,9.37454202]
[1773649908246,3.69682915,2249.9,2249.2,3.80949124]
[1773649910048,3.69682915,2249.9,2249.3,3.80949124]
[1773649911757,3.69682915,2249.9,2249.2,5.56505078]
[1773649912158,3.69682915,2249.9,2249.3,5.56505078]
[1773649912544,3.69682915,2249.9,2249.2,5.56505078]
[1773649912955,3.69682915,2249.9,2249.3,5.56505078]
[1773649913552,3.69682915,2249.9,2249.2,9.28520105]
[1773649913858,3.69682915,2249.9,2249.2,5.56505078]
[1773649915459,3.69682915,2249.9,2249.1,5.56505078]
[1773649916561,3.69682915,2249.9,2249.3,9.12098404]
[1773649916752,12.1891563,2249.8,2249.4,3.55593326]
[1773649916952,0.00477598,2249.9,2249.4,3.55593326]
[1773649916953,3.80493228,2249.9,2249.4,3.55593326]
[1773649917254,3.80493228,2249.9,2249.3,5.56505078]
[1773649917452,3.80493228,2249.9,2249.3,3.55593326]
[1773649919162,8.40777598,2249.9,2249.3,3.55593326]
[1773649919361,0.00477598,2249.9,2249.3,3.55593326]
[1773649920962,23.912,2250.2,2249.3,3.55593326]
[1773649921170,15.5,2250.2,2249.3,3.55593326]
[1773649921366,8.414,2250.1,2249.3,3.55593326]
[1773649921562,3.8001563,2250.3,2249.3,3.55593326]
[1773649921765,3.8001563,2250.1,2249.3,3.55593326]
[1773649922066,3.80502228,2250.1,2249.3,3.55593326]
[1773649925674,3.80502228,2250.1,2248.9,3.55593326]
[1773649926370,3.8001563,2250.0,2248.9,3.55593326]
[1773649926575,3.8001563,2249.8,2248.9,3.55593326]
[1773649927275,3.8001563,2249.6,2248.9,3.55593326]
[1773649928276,3.8001563,2249.4,2248.9,3.55593326]
[1773649929372,3.8001563,2249.4,2248.8,2.8416296]
[1773649929578,3.8001563,2249.4,2248.2,3.55593326]
[1773649930378,3.8001563,2249.4,2248.2,3.55919749]
[1773649932578,3.8001563,2249.1,2248.2,0.00326423]
[1773649932879,3.8001563,2248.9,2248.2,3.55919749]
[1773649942288,3.8001563,2248.9,2247.8,3.35555721]
[1773649942691,3.63527708,2248.7,2247.8,3.35555721]
[1773649943192,3.63527708,2248.7,2247.8,3.35811404]
[1773649946891,3.63527708,2248.7,2247.9,3.35555721]
[1773649947093,3.63527708,2248.7,2248.0,0.98913192]
[1773649947283,12.16927708,2248.7,2248.3,3.35555721]
[1773649947487,3.63527708,2248.8,2248.3,3.35555721]
[1773649947693,8.535,2248.9,2248.5,3.35555721]
[1773649947891,3.63527708,2249.3,2248.8,3.35555721]
[1773649948789,3.63527708,2249.5,2248.9,3.35555721]
[1773649950991,8.539,2249.6,2248.9,3.35555721]
[1773649951994,3.63527708,2249.8,2248.9,3.35555721]
[1773649952491,3.63527708,2250.0,2248.9,3.35555721]
[1773649952992,3.63527708,2250.0,2249.1,3.35555721]
[1773649962193,0.00486598,2250.1,2249.1,3.35555721]
[1773649962494,3.64014306,2250.1,2249.1,3.35555721]
[1773649963100,3.64014306,2250.1,2249.2,0.22226]
[1773649963292,3.64014306,2250.1,2249.3,3.35555721]
[1773649963598,0.00486598,2250.1,2249.5,3.35555721]
[1773649963900,3.63527708,2250.9,2249.7,3.35555721]
[1773649964298,3.63527708,2250.9,2249.9,3.35555721]
[1773649964599,3.63527708,2250.9,2250.1,3.35555721]
[1773649964799,3.63841769,2250.9,2250.1,3.35555721]
[1773649965500,0.00314061,2250.9,2250.1,3.35555721]
[1773649965903,3.63841769,2250.9,2250.2,0.22216]
[1773649966201,3.63841769,2250.9,2250.2,3.57771721]
[1773649966398,0.00314061,2250.9,2250.2,3.57771721]
[1773649966595,3.63841769,2250.9,2250.2,3.57771721]
[1773649967000,3.63841769,2250.9,2250.2,3.35555721]
[1773649967901,3.63841769,2250.9,2249.7,3.35555721]
[1773649968296,3.63841769,2250.9,2249.8,3.35555721]
[1773649968699,3.63841769,2250.9,2250.0,3.35555721]
[1773649972702,0.00314061,2250.9,2250.0,3.57773721]
[1773649973301,3.80721035,2250.9,2250.0,3.57773721]
[1773649973500,0.00314061,2250.9,2250.0,3.57773721]
[1773649975604,0.00314061,2250.9,2250.0,10.83673721]
[1773649975806,0.00314061,2250.9,2250.1,3.82962186]
[1773649977103,3.61652308,2250.9,2250.1,3.82962186]
[1773649984113,3.61338247,2251.3,2250.3,3.82962186]
[1773649984305,3.61338247,2251.3,2250.5,3.82962186]
[1773649985205,3.61752916,2251.3,2250.5,3.82962186]
[1773649986408,3.61752916,2251.3,2249.7,18.37015409]
[1773649986409,3.61752916,2251.3,2250.1,3.82962186]
[1773649988912,3.61752916,2251.3,2249.9,3.82962186]
[1773649988913,3.61338247,2251.1,2249.9,3.82962186]
[1773649989119,3.61338247,2250.9,2249.6,3.82962186]
[1773649990117,3.61338247,2250.9,2249.5,0.00255683]
[1773649990415,3.61338247,2250.9,2249.5,3.83217869]
[1773649991122,3.61338247,2250.7,2249.5,3.83217869]
[1773649993026,3.61338247,2250.7,2249.7,3.82962186]
[1773649995213,3.61338247,2250.7,2249.9,3.82962186]
[1773649996421,3.61338247,2250.7,2249.6,3.82962186]
[1773649996925,3.61338247,2250.7,2249.8,3.82962186]
[1773650004628,3.61338247,2250.7,2249.6,3.69759985]
[1773650007032,3.61338247,2250.7,2249.6,3.91981985]
[1773650010927,3.51651986,2250.5,2249.6,3.91981985]
[1773650011935,3.51651986,2250.5,2249.6,3.69759985]
[1773650012124,3.51651986,2250.3,2249.6,3.69759985]
[1773650012529,3.51651986,2250.1,2249.5,0.00255683]
[1773650013030,3.51651986,2249.7,2249.5,0.00255683]
[1773650013230,3.51651986,2250.0,2249.3,3.69759985]
[1773650013630,3.51651986,2249.9,2249.3,3.69759985]
[1773650014338,3.51651986,2249.7,2249.3,3.70119008]
[1773650014732,0.00546938,2249.9,2249.3,3.70119008]
[1773650014733,3.51651986,2249.8,2249.3,3.70119008]
[1773650016036,3.51651986,2249.8,2249.3,0.00359023]
[1773650016735,3.51651986,2249.8,2249.0,3.69759985]
[1773650017834,3.51651986,2249.8,2249.0,3.70244734]
[1773650018833,3.51651986,2249.8,2249.0,0.00484749]
[1773650019033,3.51651986,2249.7,2249.0,0.00484749]
[1773650021134,3.51651986,2249.7,2248.6,3.91991985]
[1773650022035,3.51651986,2249.7,2248.6,3.70244814]
[1773650023632,3.51651986,2249.2,2248.6,0.00484829]
[1773650024435,3.51651986,2249.2,2248.3,3.69759985]
[1773650024743,3.51651986,2248.9,2248.0,3.69759985]
[1773650024943,3.51651986,2248.9,2247.6,3.69759985]
[1773650025238,3.51651986,2248.6,2247.6,8.80085125]
[1773650025543,1.60060968,2248.4,2247.1,3.69759985]
[1773650025838,3.51651986,2248.3,2247.1,3.69759985]
[1773650026040,3.52196193,2248.3,2247.1,3.69759985]
[1773650036845,3.25336288,2248.0,2247.3,3.37457276]
[1773650038050,3.25336288,2248.0,2247.5,3.37457276]
[1773650039047,3.25336288,2247.8,2247.3,3.37457276]
[1773650041652,3.25336288,2247.9,2247.3,3.37457276]
[1773650042455,3.25336288,2247.9,2247.5,3.37457276]
[1773650043150,4.24309,2248.1,2247.5,3.37457276]
[1773650043357,3.25336288,2248.0,2247.5,3.37457276]
[1773650043654,3.25336288,2248.0,2247.3,3.37457276]
[1773650045558,3.25336288,2248.0,2246.8,0.44482844]
[1773650045559,3.25336288,2248.2,2247.7,3.37457276]
[1773650046663,3.25336288,2247.7,2247.1,3.37457276]
[1773650046862,4.24309,2247.4,2247.0,3.37457276]
[1773650047051,3.25336288,2247.3,2247.0,3.37457276]
[1773650047256,3.25336288,2247.3,2247.0,3.3673466]
[1773650047560,3.25336288,2247.5,2247.0,3.3673466]
[1773650048263,0.98972712,2248.0,2246.5,0.98972712]
[1773650048264,3.25336288,2247.3,2246.8,3.37457276]
[1773650048557,3.25336288,2246.9,2246.4,3.49384459]
[1773650048756,3.25336288,2246.9,2246.3,3.37457276]
[1773650048955,3.25336288,2246.9,2246.0,3.37457276]
[1773650050758,1.60493412,2246.5,2245.5,3.37457276]
[1773650050955,0.00548499,2246.5,2245.5,3.37457276]
[1773650051161,3.25336288,2246.8,2245.9,3.37457276]
[1773650052359,3.25736797,2246.8,2245.9,3.37791445]
[1773650055763,3.25336288,2245.9,2244.9,3.37457276]
[1773650056159,4.45200509,2246.8,2245.6,3.37457276]
[1773650056160,3.25336288,2246.6,2245.6,3.37457276]
[1773650056359,1.60493412,2246.5,2245.1,3.37457276]
[1773650056563,3.25336288,2246.4,2245.1,3.37457276]
[1773650056858,3.25336288,2246.4,2245.1,3.37688806]
[1773650059266,1.60493412,2246.2,2245.1,3.37688806]
[1773650059470,3.25336288,2246.1,2245.1,3.37688806]
[1773650060572,3.25336288,2246.1,2245.3,3.37457276]
[1773650061779,3.25336288,2246.5,2245.3,3.37457276]
[1773650063073,3.25336288,2246.5,2245.5,3.11329549]
[1773650064283,3.28822914,2246.4,2245.2,3.11329549]
[1773650066287,3.28822914,2246.4,2245.4,3.11329549]
[1773650066488,3.28822914,2246.4,2245.6,3.11329549]
[1773650066986,3.28822914,2246.7,2245.6,3.11329549]
[1773650072584,3.28822914,2246.5,2245.6,3.11329549]
[1773650072990,3.28822914,2246.5,2245.8,3.11329549]
[1773650073597,3.28822914,2246.7,2245.8,3.11329549]
[1773650074795,3.28822914,2246.6,2245.3,3.11329549]
[1773650075497,3.28822914,2246.6,2245.5,3.11329549]
[1773650077396,3.28822914,2246.6,2245.7,3.11329549]
[1773650079293,0.00400509,2246.8,2245.9,3.11329549]
[1773650079294,3.29223423,2246.8,2245.9,3.11329549]
[1773650079497,3.29223423,2246.8,2246.1,3.11329549]
[1773650080197,3.28822914,2247.6,2246.3,3.11329549]
[1773650080592,3.28822914,2247.6,2246.5,3.11329549]
[1773650081196,3.29267924,2247.6,2246.5,3.11329549]
[1773650082004,3.29267924,2247.6,2246.7,3.11329549]
[1773650082201,3.29267924,2247.6,2246.7,3.11705328]
[1773650082396,0.0044501,2247.6,2246.9,3.11329549]
[1773650082704,3.28822914,2247.8,2246.9,3.11329549]
[1773650083399,3.28822914,2248.1,2246.9,3.11329549]
[1773650083703,3.29224554,2248.1,2246.9,3.11329549]
[1773650086400,3.29224554,2248.1,2247.1,3.11329549]
[1773650088104,3.29224554,2248.1,2246.8,3.11329549]
[1773650088305,3.28822914,2248.0,2246.8,3.11329549]
[1773650088599,3.28822914,2247.8,2246.7,0.00375779]
[1773650088803,3.28822914,2247.6,2246.7,3.11705328]
[1773650089002,3.28822914,2247.6,2246.7,0.00375779]
[1773650089606,3.28822914,2247.6,2246.7,3.11705328]
[1773650090108,3.28822914,2247.6,2246.7,0.00375779]
[1773650094813,3.28822914,2247.6,2246.7,2.936131]
[1773650095911,0.0040164,2248.1,2246.7,2.936131]
[1773650096213,2.76530472,2248.0,2246.9,2.93237321]
[1773650097814,2.76530472,2248.0,2246.8,0.2225]
[1773650097815,2.76530472,2248.0,2247.1,2.93237321]
[1773650099316,2.76530472,2248.0,2246.8,2.93237321]
[1773650104120,2.76530472,2248.0,2247.2,2.93237321]
[1773650104321,2.76932112,2248.1,2247.2,2.93237321]
[1773650106420,0.0040164,2248.1,2247.4,2.93237321]
[1773650107117,0.0040164,2248.1,2247.6,2.93237321]
[1773650107424,2.76530472,2248.6,2247.6,2.93237321]
[1773650107626,2.76530472,2248.9,2247.8,2.93237321]
[1773650108222,2.7687424,2248.9,2247.8,2.93237321]
[1773650115418,0.00343768,2248.9,2248.0,2.93237321]
[1773650116517,0.00343768,2248.9,2248.1,0.22237]
[1773650116727,0.00343768,2248.9,2248.2,2.93237321]
[1773650118430,2.76530472,2249.3,2248.2,2.93237321]
[1773650119426,2.76992494,2249.3,2248.2,2.93237321]
[1773650119631,2.76992494,2249.3,2247.7,2.93237321]
[1773650120134,2.76992494,2249.3,2247.8,2.93237321]
[1773650122535,2.99218494,2249.3,2247.8,2.93237321]
[1773650124031,2.76992494,2249.3,2248.0,2.61808256]
[1773650128538,2.76992494,2249.3,2248.2,2.61808256]
[1773650134433,0.00462022,2249.3,2248.4,2.61808256]
[1773650134740,2.74045566,2249.3,2248.4,2.62305153]
[1773650138841,0.00462022,2249.3,2248.7,2.61808256]
[1773650140847,2.73583544,2249.5,2248.7,2.61808256]
[1773650141148,2.73583544,2250.1,2248.9,2.61808256]
[1773650141947,2.74080879,2250.1,2249.1,2.61808256]
[1773650142248,2.73583544,2250.5,2249.3,2.61808256]
[1773650143344,2.74141999,2250.5,2249.3,2.61808256]
[1773650143543,2.74141999,2250.5,2249.5,4.22002116]
[1773650143749,2.73583544,2250.9,2250.1,1.6019386]
[1773650143953,2.73583544,2250.9,2250.2,2.61808256]
[1773650144647,2.73964122,2250.9,2250.2,2.62120366]
[1773650146643,0.00380578,2250.9,2250.2,2.62120366]
[1773650146843,2.73583544,2251.1,2250.2,2.62120366]
[1773650147750,2.74010245,2251.1,2250.2,2.62120366]
[1773650148446,2.74010245,2251.1,2250.2,0.0031211]
[1773650149050,2.73583544,2251.0,2250.2,0.0031211]
[1773650150341,1.60620561,2251.1,2249.2,2.61808256]
[1773650150342,2.73583544,2250.7,2249.2,2.61808256]
[1773650150746,2.73583544,2250.7,2249.4,2.61808256]
[1773650151342,2.73583544,2250.7,2249.4,2.62375501]
[1773650157867,2.73583544,2250.7,2249.6,2.5131623]
[1773650158656,1.60620561,2251.1,2249.6,2.5131623]
[1773650158961,2.37093277,2251.0,2249.8,2.5131623]
[1773650159464,2.37093277,2250.7,2249.5,2.5131623]
[1773650162264,2.37093277,2250.1,2249.4,0.00567245]
[1773650162467,2.37093277,2250.1,2249.4,2.51883475]
[1773650164368,2.37093277,2250.7,2249.4,2.51883475]
[1773650165269,2.37093277,2250.4,2249.4,2.51883475]
[1773650174683,2.37093277,2250.4,2249.4,0.00567245]
[1773650176588,2.37093277,2250.4,2249.4,2.51883475]
[1773650176988,1.8197795,2250.6,2249.4,0.00567245]
[1773650176989,2.37093277,2250.2,2249.4,0.00567245]
[1773650177186,2.37093277,2249.9,2249.0,2.5131623]
[1773650178185,2.37093277,2249.7,2249.0,2.5131623]
[1773650178490,2.37093277,2249.7,2249.0,2.51886176]
[1773650179393,2.37093277,2249.7,2249.0,0.00569946]
[1773650180901,2.37093277,2249.6,2248.6,2.5131623]
[1773650181089,2.37093277,2249.3,2248.2,2.5131623]
[1773650181988,2.37528802,2249.3,2248.2,2.51831907]
[1773650188489,2.37528802,2249.3,2247.6,6.97283487]
[1773650188490,2.18517592,2248.6,2247.6,2.39936106]
[1773650189590,2.18517592,2248.6,2247.6,2.4051147]
[1773650191896,2.18517592,2249.0,2248.0,2.39936106]
[1773650193792,2.18517592,2248.9,2248.0,2.39936106]
[1773650194393,2.18517592,2248.9,2247.9,2.62175106]
[1773650194998,2.18517592,2248.9,2247.9,2.39936106]
[1773650199201,2.18517592,2248.8,2247.9,2.39936106]
[1773650199402,2.18517592,2248.8,2247.7,2.39936106]
[1773650203704,0.00435525,2249.3,2247.6,0.00575364]
[1773650203705,2.18517592,2249.2,2248.1,2.39936106]
[1773650211910,2.18517592,2249.0,2247.7,2.39936106]
[1773650212309,2.18517592,2249.0,2247.8,2.07058726]
[1773650213812,2.0509356,2248.8,2247.8,2.07058726]
[1773650214410,3.6796223,2249.1,2247.6,2.19515422]
[1773650214411,2.02698617,2248.6,2247.6,2.19515422]
[1773650228410,2.02698617,2248.4,2247.3,2.18940058]
[1773650228611,2.02698617,2248.4,2246.8,9.46393254]
[1773650228612,2.02698617,2248.2,2246.9,2.18940058]
[1773650228817,2.02698617,2248.0,2246.9,2.18940058]
[1773650229009,2.02698617,2247.9,2246.9,2.18940058]
[1773650229416,2.02698617,2247.9,2247.1,2.18940058]
[1773650229615,2.02698617,2248.3,2247.1,2.18940058]
[1773650229808,2.02698617,2248.1,2247.1,2.18940058]
[1773650230008,2.02698617,2248.1,2247.2,0.22246]
[1773650230317,8.021,2248.4,2247.3,2.18940058]
[1773650230318,2.02698617,2248.2,2247.3,2.18940058]
[1773650230818,2.02698617,2248.7,2247.5,2.18940058]
[1773650232013,2.02698617,2248.5,2247.5,2.18940058]
[1773650240017,2.02698617,2248.5,2247.2,6.13901457]
[1773650240218,2.02698617,2248.0,2246.7,2.18940058]
[1773650240422,13.53182818,2247.9,2245.7,2.18940058]
[1773650240615,5.30443818,2247.8,2246.0,2.18940058]
[1773650241121,0.53707462,2247.6,2246.0,2.19427537]
[1773650241324,0.53707462,2247.5,2246.0,2.19427537]
[1773650242319,0.51783191,2247.4,2246.0,2.19427537]
[1773650243215,0.52453278,2247.3,2246.0,2.19427537]
[1773650243422,0.54238443,2247.2,2246.0,2.19427537]
[1773650244821,0.57218136,2247.1,2246.0,2.19427537]
[1773650249734,0.53435665,2247.0,2246.0,2.19427537]
[1773650250331,0.52796902,2247.2,2246.0,2.19427537]
[1773650252132,0.5489646,2247.1,2246.0,2.19427537]
[1773650252532,0.22248,2247.0,2246.0,2.19427537]
[1773650252824,0.53736503,2246.9,2246.0,2.19427537]
[1773650255533,0.53736503,2246.9,2245.0,0.22268]
[1773650255534,1.60302513,2246.6,2245.7,2.24283356]
[1773650255827,2.24360905,2246.3,2245.1,2.24283356]
[1773650256633,2.24360905,2246.3,2245.1,2.24514138]
[1773650257725,2.24360905,2245.4,2243.3,9.26334116]
[1773650257931,2.24360905,2245.2,2243.3,2.24283356]
[1773650258130,2.24360905,2245.2,2243.4,2.24283356]
[1773650258630,2.24360905,2245.2,2243.6,2.24283356]
[1773650258930,2.24914819,2245.2,2243.7,4.69017596]
[1773650259131,2.24914819,2245.2,2243.8,2.24283356]
[1773650260238,0.00553914,2245.2,2244.0,2.24283356]
[1773650260431,2.24914819,2245.2,2244.0,2.24283356]
[1773650262037,2.47177869,2245.2,2244.0,2.24283356]
[1773650262540,2.24914819,2245.2,2244.0,2.24283356]
[1773650264339,0.00553914,2245.2,2244.0,2.24283356]
[1773650264638,0.00553914,2245.2,2244.2,2.24283356]
[1773650264840,2.24360905,2245.5,2244.2,2.2483727]
[1773650265139,2.24360905,2245.7,2244.4,2.24283356]
[1773650265839,2.24742892,2245.7,2244.4,2.24283356]
[1773650266642,0.00381987,2245.7,2244.6,2.24283356]
[1773650268039,2.24360905,2246.0,2244.8,2.24283356]
[1773650268640,2.24360905,2246.2,2244.8,2.24283356]
[1773650269043,0.00384137,2246.2,2245.1,2.24283356]
[1773650269544,2.24745042,2246.2,2245.3,2.24283356]
[1773650271546,2.24360905,2246.1,2245.3,2.24283356]
[1773650271745,2.24360905,2245.8,2244.6,2.24283356]
[1773650272253,2.24360905,2245.8,2244.7,2.24283356]
[1773650272746,2.24281648,2245.5,2244.7,2.24283356]
[1773650273847,2.24281648,2245.8,2244.7,2.24283356]
[1773650276154,2.23178408,2246.1,2244.7,2.24283356]
[1773650277153,2.23178408,2246.1,2244.9,2.39874599]
[1773650279050,2.23178408,2245.8,2244.9,2.39874599]
[1773650281058,2.23178408,2246.1,2244.9,2.39874599]
[1773650281250,2.23178408,2246.1,2245.1,2.39874599]
[1773650282151,2.23562545,2246.2,2245.1,2.39874599]
[1773650283553,0.00384137,2246.2,2245.1,2.39874599]
[1773650284253,2.23562545,2246.2,2245.1,2.39874599]
[1773650284460,0.00384137,2246.2,2245.3,2.39874599]
[1773650284849,0.00384137,2246.2,2245.5,2.39874599]
[1773650285558,2.23562545,2246.2,2245.5,2.39874599]
[1773650287056,2.23178408,2246.5,2245.5,2.39874599]
[1773650288057,2.23517749,2246.5,2245.5,2.39874599]
[1773650292656,2.23178408,2246.2,2245.5,2.39874599]
[1773650294863,3.839769,2246.3,2245.5,2.39874599]
[1773650295063,2.23178408,2246.3,2245.5,2.39874599]
[1773650298367,2.23178408,2245.8,2244.8,2.39874599]
[1773650298666,2.23178408,2245.8,2244.9,2.39874599]
[1773650299068,2.23178408,2246.1,2244.9,2.39874599]
[1773650299272,2.23178408,2245.9,2244.9,2.39874599]
[1773650301266,0.22194037,2246.3,2245.1,2.39874599]
[1773650301267,2.45372445,2246.3,2245.1,2.39874599]
[1773650301465,2.23178408,2246.3,2245.1,2.39874599]
[1773650304768,2.39413747,2246.5,2245.3,2.40139238]
[1773650304974,2.39413747,2246.5,2245.6,2.40139238]
[1773650306171,2.39074406,2246.4,2245.6,2.40139238]
[1773650307774,0.00339341,2246.5,2245.6,2.40139238]
[1773650308170,0.00339341,2246.5,2245.8,2.40139238]
[1773650308371,1.60798492,2247.1,2245.8,2.4054246]
[1773650308372,2.39074406,2247.0,2245.8,2.4054246]
[1773650308573,8.02421451,2246.9,2245.8,2.4054246]
[1773650308774,2.39074406,2246.9,2245.8,2.4054246]
[1773650309474,2.39418977,2246.9,2245.8,2.4054246]
[1773650314382,1.60798492,2246.8,2245.8,2.4054246]
[1773650314680,2.39074406,2246.7,2245.8,2.4054246]
[1773650318381,2.39074406,2246.4,2245.8,2.4054246]
[1773650319375,2.39074406,2246.4,2245.6,2.40139238]
[1773650320384,2.39074406,2246.4,2245.6,2.40530614]
[1773650320880,2.39074406,2246.2,2245.4,2.40139238]
[1773650321875,2.61330406,2246.2,2245.0,2.40139238]
[1773650322081,2.39074406,2245.8,2244.5,2.40139238]
[1773650322278,2.39074406,2245.8,2244.8,2.40139238]
[1773650323180,2.39074406,2245.8,2244.8,2.40569257]
[1773650326983,2.61821261,2245.8,2244.8,2.40569257]
[1773650336584,2.26953461,2245.5,2244.8,0.00430019]
[1773650336784,2.26953461,2245.5,2244.0,2.22489178]
[1773650337185,2.26953461,2245.5,2244.1,2.22489178]
[1773650337487,2.26953461,2245.5,2243.6,6.655]
[1773650337488,2.26953461,2245.6,2244.3,2.22489178]
[1773650339791,2.26953461,2245.6,2244.5,2.22489178]
[1773650340686,0.22263,2245.5,2244.0,2.22489178]
[1773650340891,2.26953461,2245.4,2244.0,2.22489178]
[1773650341088,2.26953461,2245.4,2244.1,2.22489178]
[1773650342592,2.26953461,2245.4,2244.3,2.22489178]
[1773650343586,2.26953461,2245.4,2243.7,2.22489178]
[1773650343994,2.26953461,2245.1,2243.8,2.22489178]
[1773650344192,2.27355381,2245.1,2243.8,2.22489178]
[1773650346497,2.27355381,2245.1,2244.0,2.22489178]
[1773650349396,2.26953461,2245.0,2244.0,2.22489178]
[1773650354805,2.26953461,2245.0,2244.4,2.22489178]
[1773650355003,2.26953461,2245.0,2244.3,2.22489178]
[1773650356701,2.26953461,2245.0,2243.9,2.22489178]
[1773650358408,2.26953461,2245.0,2244.1,2.22489178]
[1773650358907,11.59461598,2245.8,2244.5,2.22489178]
[1773650358908,2.26953461,2245.7,2244.5,2.22489178]
[1773650359808,2.27272794,2245.7,2244.7,2.22489178]
[1773650366407,2.14916401,2245.7,2244.9,2.24485208]
[1773650367811,0.00319333,2245.7,2244.9,2.24485208]
[1773650368713,2.14597068,2245.9,2245.1,2.24485208]
[1773650369913,0.00450838,2245.9,2245.2,0.22266]
[1773650370223,2.14597068,2246.6,2245.5,2.24485208]
[1773650370517,2.14597068,2246.6,2245.7,2.24485208]
[1773650371113,2.1516212,2246.6,2245.7,2.24983019]
[1773650378114,2.1516212,2246.6,2245.7,0.00497811]
[1773650378319,2.1516212,2246.6,2245.5,2.24485208]
[1773650378615,2.14597068,2246.4,2245.5,2.24485208]
[1773650379320,2.14597068,2246.4,2245.5,2.2491467]
[1773650381022,7.827,2246.5,2245.5,2.2491467]
[1773650381023,2.14597068,2246.1,2245.5,2.2491467]
[1773650381217,1.60655657,2245.9,2244.8,2.24485208]
[1773650381423,2.14597068,2245.8,2244.8,2.24485208]
[1773650382319,2.14597068,2245.8,2243.8,8.78385208]
[1773650382521,2.14597068,2244.3,2243.7,2.24485208]
[1773650383419,2.14949361,2244.3,2243.7,2.24485208]
[1773650383821,0.00352293,2244.3,2243.7,2.24485208]